Workbook

Sheet Welkom
B2: ENDIFE
B3: Educatie- eN DIagnose voor Financieel-Economische gezondheid
B6: Auteurs: Erwin Wauters, Dries Loncke, Jef Van Meensel
B7: Gemaakt in het kader van het demonstratieproject 'Witloofbarometer' i.o.v. het Departement Landbouw en Visserij
B8: Projectpartners: Nationale Proeftuin voor Witloof (projectleider), Inagro, ILVO en BB-Consult
B11: Contact:
B12: Tim De Clercq (Nationale Proeftuin voor Witloof, tim.declercq@vlaamsbrabant.be)
B13: Tania De Marez (Inagro, tania.demarez@inagro.be)
B14: Christien Miroir (BB-Consult,christien.miroir@boerenbond.be)
B17: Aansprakelijkheidsbeperking ENDIFETM werd door het ILVO met de meeste zorg en nauwkeurigheid ontwikkeld. Er wordt evenwel geen enkele garantie gegeven omtrent de juistheid of de volledigheid van de informatie geleverd door ENDIFETM. De gebruiker van ENDIFETM ziet af van elke klacht tegen het ILVO of zijn ambtenaren, van welke aard ook, met betrekking tot het gebruik van de via ENDIFETM beschikbaar gestelde informatie. In geen geval zal het ILVO of zijn ambtenaren aansprakelijk gesteld kunnen worden voor eventuele nadelige gevolgen die voortvloeien uit het gebruik van de via ENDIFETM beschikbaar gestelde informatie. ENDIFETM is een gedeponeerd handelsmerk.

Sheet Info
B2: ENDIFE
B3: Educatie- eN DIagnose voor Financieel-Economische gezondheid
B7: ENDIFE is een programma dat in staat is om de economische en financiële toestand van uw witloofbedrijf onder de loep te nemen op basis van gegevens uit de bedrijfseconomische boekhouding. Het economisch luik is vooral een indicatie van de gezondheid van uw bedrijf op een iets langere termijn, terwijl het financieel luik eerder meet hoe goed het bedrijf erin slaagt om te voldoen aan de cashverplichtingen op korte termijn. Verschillende parameters zullen door het programma worden berekend en afgetoetst aan gewenste streefwaarden. Vervolgens worden ook tips meegegeven over hoe u de economische en financiële toestand van uw bedrijf verder kan optimaliseren.
B9: Invoer
B11: In tabblad "Invoer gegevens" vult u de gegevens uit de bedrijfseconomische boekhouding in. Het gaat hierbij over de resultatenrekening, de balans en enkele algemene bedrijfsgegevens.
B13: Analyse
B15: Het model berekent op basis van de ingevoerde gegevens enkele indicatoren die het economisch prestatievermogen van uw bedrijf analyseren, alsook de mate waarin uw bedrijf in staat is om aan de lopende financiële verplichtingen te voldoen. In het "Resultaat" tabblad staat voor elke indicator een barometer die aangeeft of uw bedrijf Goed, Matig of Zwak scoort op deze indicator. Voor elke indicator is ook een fiche voorzien met uitleg en mogelijke verbeteropties.
B17: Opmerkingen
B19: ENDIFE kan enkel gebruikt worden indien macro's zijn ingeschakeld.
B21: Voor zowel witloofteelt in de grond als op hydrocultuur zijn reeds voorbeeldwaarden uit de sector beschikbaar. U kunt de tool ook toepassen op uw eigen bedrijf. Hiervoor heeft u gegevens uit de bedrijfseconomische boekhouding nodig.

Sheet Invoer gegevens
A1: In dit tabblad moeten gegevens uit de boekhouding ingevuld worden.
A2: Om voorbeeldwaarden te bekijken, geeft u eerst een jaartal op waarvan u de waarden wilt zien. Daarna klikt u op "Toon voorbeeldwaarden".
A3: Om de voorbeeldwaarden terug weg te doen, klikt u op "Wis voorbeeldwaarden". U kan daarna ook uw eigen bedrijfsgegevens invullen.
A6: Hydrocultuur | B6: Kies een referentiejaar (2010-2014): | D6: 2013
B9: Resultatenrekening | F9: Balans | J9: Algemeen
D10: Voorbeeldbedrijf | H10: Voorbeeldbedrijf | L10: Voorbeeldbedrijf
B11: Opbrengsten | D11: =SUM(D12:D14) -> 394290.41 | F11: Activa | H11: =SUM(H12:H17) -> 1524821.215 | J11: Algemene bedrijfsgegevens
B12: Ontvangsten witloof | C12: € | D12: 313527.88 | F12: Gebouwen | G12: € | H12: 789744.22 | J12: Eigen arbeid | K12: aantal volwaardige arbeidskrachten (VAK)* | L12: 2.05
B13: Andere ontvangsten (via verkoop van andere producten en bijproducten) | C13: € | D13: 80762.53 | F13: Machines | G13: € | H13: 510386.193 | J13: Totaal kg geoogst witloof | K13: kg | L13: 321690.94
B14: Varia (verkoop machines, installatiepremies VLIF, pachtafstandsvergoedingen,…) | C14: € | D14: 0 | F14: Cash | G14: € | H14: 0 | J14: Niet-landbouwinkomen | K14: € | L14: 0
F15: Voorraden (teeltproducten, meststoffen, brandstoffen en olie) | G15: € | H15: 70000 | J15: Gezinsuitgaven | K15: € | L15: 0
B16: Variabele kosten | D16: =SUM(D17:D25) -> 215422.7856 | F16: Voorschotten | G16: € | H16: 0 | J16: Aflossingen (leningen) | K16: € | L16: 41000
B17: Zaaigoed | C17: € | D17: 24534.6748 | F17: Grond | G17: € | H17: 154690.802
B18: Meststoffen | C18: € | D18: 11493.9768
B19: Gewasbescherming | C19: € | D19: 15982.2398 | F19: Passiva | H19: =SUM(H20:H22) -> 1524821.215
B20: Bewaring | C20: € | D20: 2086.81 | F20: Schulden korte termijn (binnen het jaar) | G20: € | H20: 41000
B21: Verwarming | C21: € | D21: 2478.6576 | F21: Schulden lange termijn (langer dan een jaar) | G21: € | H21: 369000
B22: Energie en water | C22: € | D22: 37821.1112 | F22: Eigen vermogen | G22: € | H22: =H11-(H20+H21) -> 1114821.215
B23: Afzet en vermarkting | C23: € | D23: 4418.911
B24: Loonwerk en seizoenslonen | C24: € | D24: 104804.6844
B25: Diverse (andere dan bovengenoemde) | C25: € | D25: 11801.72
B27: Vaste kosten | D27: =SUM(D28:D35) -> 269908.3402
B28: Betaalde arbeid (loon van werknemers) | C28: € | D28: 6465.258
B29: Fictieve arbeid (Aangerekend loon van de bedrijfsleider en/of zijn gezinsleden. Richtwaarde: 15,45 €/uur) | C29: € | D29: 79600.1172
B30: Betaalde rente (intrest betaald op schulden) | C30: € | D30: 11645.592
B31: Fictieve rente (Intrestkost op alle eigen kapitaal. Het standaard- percentage bedraagt 5%) | C31: € | D31: 32052.836
B32: Fictieve pacht (Fictieve huursom voor gebruik van eigen grond. De gemiddelde pachtprijs van de streek is richtinggevend) | C32: € | D32: 1956.626
B33: Betaalde pacht (huursom van grond die gehuurd wordt) | C33: € | D33: 70837.1056
B34: Afschrijvingen (jaarlijkse kost voor machines, gebouwen,…) | C34: € | D34: 62058.318
B35: Algemene vaste kosten (verzekeringen, vergunningen, lidgelden, autokosten…) | C35: € | D35: 5292.4874
A50: Voorbeeldbedrijf
A51: Resultatenrekening: grondteelt | F51: Balans: grondteelt | K51: Algemeen: grondteelt
A52: 2010 | B52: 2011 | C52: 2012 | D52: 2013 | E52: 2014 | F52: 2010 | G52: 2011 | H52: 2012 | I52: 2013 | J52: 2014 | K52: 2010 | L52: 2011 | M52: 2012 | N52: 2013 | O52: 2014
A53: 41952.798 | B53: 35423.2066 | C53: 35247.2716 | D53: 41113.6236 | E53: 30640.5692 | F53: 129530.523 | G53: 170539.664 | H53: 132734.1 | I53: 135308.357 | J53: 201833.79 | K53: 2.274 | L53: 1.466 | M53: 1.912 | N53: 1.832 | O53: 1.544
A54: 51047.7626 | B54: 41972.994 | C54: 93234.1932 | D54: 83832.9368 | E54: 106312.681 | F54: 200712.203 | G54: 248147.6 | H54: 163682.25 | I54: 269909.225 | J54: 355310.42 | K54: 21935.4 | L54: 15789.8 | M54: 15869.3 | N54: 14238.8 | O54: 16390.166
A55: 0 | B55: 0 | C55: 0 | D55: 0 | E55: 0 | F55: 0 | G55: 0 | H55: 0 | I55: 0 | J55: 0 | K55: 0 | L55: 0 | M55: 0 | N55: 0 | O55: 0
A56: 3987.7544 | B56: 4010.354 | C56: 9458.9096 | D56: 5699.0964 | E56: 12094.8224 | F56: 40000 | G56: 40000 | H56: 40000 | I56: 40000 | J56: 40000 | K56: 0 | L56: 0 | M56: 0 | N56: 0 | O56: 0
A57: 3057.6294 | B57: 3834.802 | C57: 6908.7978 | D57: 4952.3442 | E57: 13182.1436 | F57: 0 | G57: 0 | H57: 0 | I57: 0 | J57: 0 | K57: 11900 | L57: 10100 | M57: 7600 | N57: 10900 | O57: 11100
A58: 3258.479 | B58: 3853.2424 | C58: 5985.8234 | D58: 6771.3138 | E58: 14808.819 | F58: 101658.904 | G58: 82455.77 | H58: 96747.85 | I58: 122874.315 | J58: 113932.412
A59: 0 | B59: 0 | C59: 0 | D59: 0 | E59: 0 | K59: Algemeen: hydrocultuur
A60: 729.5408 | B60: 1239.4318 | C60: 1424.3036 | D60: 1568.4866 | E60: 1478.6926 | F60: 11900 | G60: 10100 | H60: 7600 | I60: 10900 | J60: 11100 | K60: 2010 | L60: 2011 | M60: 2012 | N60: 2013 | O60: 2014
A61: 4944.8 | B61: 6627.4292 | C61: 7816.0604 | D61: 7209.3372 | E61: 8863.542 | F61: 107100 | G61: 90900 | H61: 68400 | I61: 98100 | J61: 99900 | K61: 2.236 | L61: 2.242 | M61: 2.134 | N61: 2.05 | O61: 1.928
A62: 22.362 | B62: 93.696 | C62: 230.5496 | D62: 623.3346 | E62: 220.9 | K62: 281459.9 | L62: 393972.5006 | M62: 322868.58 | N62: 321690.94 | O62: 356984.344
A63: 5199.5682 | B63: 5070.6162 | C63: 5954.5942 | D63: 9519.18 | E63: 6563.2004 | F63: Balans: hydrocultuur | K63: 0 | L63: 0 | M63: 0 | N63: 0 | O63: 0
A64: 5589.7364 | B64: 2398.9052 | C64: 8351.9986 | D64: 5684.6924 | E64: 5407.823 | F64: 2010 | G64: 2011 | H64: 2012 | I64: 2013 | J64: 2014 | K64: 0 | L64: 0 | M64: 0 | N64: 0 | O64: 0
A65: 716.6 | B65: 112.264 | C65: 0 | D65: 122.318 | E65: 138.27 | F65: 523127.966 | G65: 801115.001 | H65: 752179.326 | I65: 789744.22 | J65: 605289.544 | K65: 29200 | L65: 42100 | M65: 47200 | N65: 41000 | O65: 15100
A66: 84263.997 | B66: 56005.5284 | C66: 74939.8836 | D66: 69448.816 | E66: 70599.712 | F66: 538411.101 | G66: 491438.588 | H66: 482671.231 | I66: 510386.193 | J66: 440352.54
A67: 2337.972 | B67: 1628.046 | C67: 2026.054 | D67: 1367.374 | E67: 1242.62 | F67: 0 | G67: 0 | H67: 0 | I67: 0 | J67: 0
A68: 9433.918 | B68: 8984.766 | C68: 9893.28 | D68: 11501.77 | E68: 12024.388 | F68: 70000 | G68: 70000 | H68: 70000 | I68: 70000 | J68: 70000
A69: 1392.52 | B69: 1156.582 | C69: 1190.484 | D69: 1403.65 | E69: 1363.204 | F69: 0 | G69: 0 | H69: 0 | I69: 0 | J69: 0
A70: 7083.0816 | B70: 6350.5684 | C70: 12329.5592 | D70: 9255.2104 | E70: 21725.094 | F70: 214613.559 | G70: 119240.706 | H70: 136730.283 | I70: 154690.802 | J70: 113170.485
A71: 17306.056 | B71: 21376.708 | C71: 14574.2 | D71: 22317.024 | E71: 28339.508
A72: 2278.3724 | B72: 2128.0602 | C72: 1484.8898 | D72: 1749.6278 | E72: 2006.2552 | F72: 29200 | G72: 42100 | H72: 47200 | I72: 41000 | J72: 15100
F73: 262800 | G73: 378900 | H73: 424800 | I73: 369000 | J73: 134900
A74: Resultatenrekening: hydrocultuur
A75: 2010 | B75: 2011 | C75: 2012 | D75: 2013 | E75: 2014
A76: 352560.134 | B76: 463886.412 | C76: 411336.868 | D76: 313527.88 | E76: 353535.618
A77: 52121.4458 | B77: 64897.3468 | C77: 87883.818 | D77: 80762.53 | E77: 45668.796
A78: 0 | B78: 0 | C78: 0 | D78: 0 | E78: 0
A79: 20313.7388 | B79: 28804.8738 | C79: 35729.5466 | D79: 24534.6748 | E79: 63980.245
A80: 10145.3526 | B80: 9733.7466 | C80: 10955.615 | D80: 11493.9768 | E80: 10433.588
A81: 14050.571 | B81: 12898.2276 | C81: 17431.999 | D81: 15982.2398 | E81: 16721.11
A82: 18.976 | B82: 80.124 | C82: 0 | D82: 2086.81 | E82: 0
A83: 1850.1894 | B83: 2095.582 | C83: 2158.7234 | D83: 2478.6576 | E83: 2518.427
A84: 25375.295 | B84: 45668.7748 | C84: 42677.3242 | D84: 37821.1112 | E84: 34203.9348
A85: 791.642 | B85: 1804.5656 | C85: 2124.0766 | D85: 4418.911 | E85: 9194.0918
A86: 62998.1268 | B86: 104662.4498 | C86: 108629.3092 | D86: 104804.6844 | E86: 68973.4116
A87: 19277.0174 | B87: 33123.4676 | C87: 23400.5004 | D87: 11801.72 | E87: 14867.2958
A88: 8339.6372 | B88: 744.3178 | C88: 1603.9302 | D88: 6465.258 | E88: 23139.599
A89: 83692.6546 | B89: 91363.115 | C89: 82941.8076 | D89: 79600.1172 | E89: 77314.4466
A90: 3604.14 | B90: 10452.526 | C90: 11250.736 | D90: 11645.592 | E90: 2124.786
A91: 23669.216 | B91: 32590.004 | C91: 31197.332 | D91: 32052.836 | E91: 22733.53
A92: 2909.208 | B92: 1292.344 | C92: 1541.512 | D92: 1956.626 | E92: 1348.816
A93: 43984.716 | B93: 57511.6252 | C93: 66251.6376 | D93: 70837.1056 | E93: 76639.284
A94: 54499.638 | B94: 68367.614 | C94: 57784.114 | D94: 62058.318 | E94: 45018.864
A95: 5424.5426 | B95: 6676.6148 | C95: 6065.5 | D95: 5292.4874 | E95: 4857.269

Sheet Rekenblad 1 (hidden)
A1: Hier staan verschillende economische en financiële indicatoren weergegeven, alsook een diagnose die zegt of de score van een indicator Goed, Matig of Zwak is.
A2: Wanneer u de cursor van uw computer boven een indicator houdt, verschijnt uitleg over wat die indicator precies betekent.
A3: Wat kan gedaan worden om de waarde van deze indicator te verbeteren, kunt u vinden door op de aanwezige blauwe hyperlinks te klikken.
A4: Hydrocultuur
A6: Economische indicatoren | D6: Uw waarde | E6: Streefwaarde 1 | F6: Streefwaarde 2 | G6: Diagnose
A7: Schuldgraad
B9: Vreemd vermogen / totaal vermogen | D9: =('Invoer gegevens'!H20+'Invoer gegevens'!H21)/('Invoer gegevens'!H11) -> 0.2688839819 | E9: 0.6 | F9: 0.3 | G9: =IF(D9>=E9,"Zwak",IF(AND(E9>D9,D9>F9),"Matig",IF(D9<=F9,"Goed"," "))) -> Goed
A11: Winstgevendheid
B13: Rendement van eigen arbeid ("arbeidsinkomen") | D13: =(('Invoer gegevens'!D11)-('Invoer gegevens'!D16)-('Invoer gegevens'!D28+'Invoer gegevens'!D30+'Invoer gegevens'!D31+'Invoer gegevens'!D32+'Invoer gegevens'!D33+'Invoer gegevens'!D34+'Invoer gegevens'!D35))/'Invoer gegevens'!L12 -> -5580.779805 | E13: 25000 | F13: 50000 | G13: =IF(D13<=E13,"Zwak",IF(AND(E13<D13,D13<F13),"Matig",IF(D13>=F13,"Goed"," "))) -> Zwak
B15: Rendement van totaal vermogen | D15: =('Invoer gegevens'!D11-'Invoer gegevens'!D16-('Invoer gegevens'!D28+'Invoer gegevens'!D29+'Invoer gegevens'!D30+'Invoer gegevens'!D34+'Invoer gegevens'!D35))/('Invoer gegevens'!H11) -> 0.009054079038 | E15: 0.03 | F15: 0.06 | G15: =IF(D15<=E15,"Zwak",IF(AND(E15<D15,D15<F15),"Matig",IF(D15>=F15,"Goed"," "))) -> Zwak
B17: Rendement van eigen vermogen | D17: =('Invoer gegevens'!D11-'Invoer gegevens'!D16-('Invoer gegevens'!D28+'Invoer gegevens'!D29+'Invoer gegevens'!D30+'Invoer gegevens'!D34+'Invoer gegevens'!D35))/('Invoer gegevens'!H22) -> 0.01238391557 | E17: 0.02 | F17: 0.08 | G17: =IF(D17<=E17,"Zwak",IF(AND(E17<D17,D17<F17),"Matig",IF(D17>=F17,"Goed"," "))) -> Zwak
B19: Operationele winstmarge ratio | D19: =((D21+'Invoer gegevens'!D30)-'Invoer gegevens'!D29)/('Invoer gegevens'!D12+'Invoer gegevens'!D13) -> -0.1151071917 | E19: 0.1 | F19: 0.25 | G19: =IF(D19<=E19,"Zwak",IF(AND(E19<D19,D19<F19),"Matig",IF(D19>=F19,"Goed"," "))) -> Zwak
B21: Netto bedrijfsinkomen | D21: =('Invoer gegevens'!D11)-('Invoer gegevens'!D16)-('Invoer gegevens'!D34+'Invoer gegevens'!D33+'Invoer gegevens'!D30+'Invoer gegevens'!D28+'Invoer gegevens'!D35) -> 22568.8634 | E21: 100000 | F21: 300000 | G21: =IF(D21<=E21,"Zwak",IF(AND(E21<D21,D21<F21),"Matig",IF(D21>=F21,"Goed"," "))) -> Zwak
A23: Financieel-economische efficiëntie | G23: =IF(D23>E23,"zwak",IF(AND(E23>D23,D23>F23),"matig",IF(D21<=F23,"goed"," "))) -> 
B25: Activa-omzet ratio | D25: =('Invoer gegevens'!D11)/('Invoer gegevens'!H11) -> 0.2585814036 | E25: 0.3 | F25: 0.45 | G25: =IF(D25<=E25,"Zwak",IF(AND(E25<D25,D25<F25),"Matig",IF(D25>=F25,"Goed"," "))) -> Zwak | I25: Kosten | J25: =D27 -> 0.742410015
I26: Afschrijvingen | J26: =D29 -> 0.1573924103
B27: Kosten-omzetratio | D27: =('Invoer gegevens'!D16+'Invoer gegevens'!D28+'Invoer gegevens'!D33)/('Invoer gegevens'!D11) -> 0.742410015 | E27: 0.8 | F27: 0.6 | G27: =IF(D27>=E27,"Zwak",IF(AND(E27>D27,D27>F27),"Matig",IF(D27<=F27,"Goed"," "))) -> Matig | I27: Intrest | J27: =D31 -> 0.02953556999
I28: Inkomen | J28: =D33 -> 0.05723918926
B29: Afschrijvings-omzetratio | D29: ='Invoer gegevens'!D34/'Invoer gegevens'!D11 -> 0.1573924103 | E29: 0.1 | F29: 0.05 | G29: =IF(D29>=E29,"Zwak",IF(AND(E29>D29,D29>F29),"Matig",IF(D29<=F29,"Goed"," "))) -> Zwak
B31: Intrest-omzetratio | D31: ='Invoer gegevens'!D30/'Invoer gegevens'!D11 -> 0.02953556999 | E31: 0.1 | F31: 0.05 | G31: =IF(D31>=E31,"Zwak",IF(AND(E31>D31,D31>F31),"Matig",IF(D31<=F31,"Goed"," "))) -> Goed
B33: Inkomens-omzetratio | D33: =D21/('Invoer gegevens'!D11) -> 0.05723918926 | E33: 0.1 | F33: 0.2 | G33: =IF(D33<=E33,"Zwak",IF(AND(E33<D33,D33<F33),"Matig",IF(D33>=F33,"Goed"," "))) -> Zwak
A35: Financiële indicatoren
A36: Balansliquiditeit
B37: Vlottende ratio | D37: =('Invoer gegevens'!H14+'Invoer gegevens'!H15+'Invoer gegevens'!H16)/('Invoer gegevens'!H20) -> 1.707317073 | E37: 1 | F37: 1.3 | G37: =IF(D37<=E37,"Zwak",IF(AND(E37<D37,D37<F37),"Matig",IF(D37>=F37,"Goed"," "))) -> Goed
B39: Vlottende marge ten opzichte van omzet | D39: =(('Invoer gegevens'!H14+'Invoer gegevens'!H15+'Invoer gegevens'!H16)-('Invoer gegevens'!H20))/('Invoer gegevens'!D11) -> 0.0735498487 | E39: 0.1 | F39: 0.3 | G39: =IF(D39<=E39,"Zwak",IF(AND(E39<D39,D39<F39),"Matig",IF(D39>=F39,"Goed"," "))) -> Zwak
A41: Terugbetalingscapaciteit
B43: Aflossingscapaciteit | D43: =(D21+'Invoer gegevens'!D34+'Invoer gegevens'!L14+'Invoer gegevens'!D30)-'Invoer gegevens'!L15 -> 96272.7734 | E43: 55000 | F43: 80000 | G43: =IF(D43<=E43,"Zwak",IF(AND(E43<D43,D43<F43),"Matig",IF(D43>=F43,"Goed"," "))) -> Goed
B45: Aflossingsmarge | D45: =D43-('Invoer gegevens'!L16+'Invoer gegevens'!D30) -> 43627.1814 | E45: 35000 | F45: 60000 | G45: =IF(D45<=E45,"Zwak",IF(AND(E45<D45,D45<F45),"Matig",IF(D45>=F45,"Goed"," "))) -> Matig
B51: Kostenstructuur (OPM: kosten van mogelijk meerdere takken)
B52: Categorie | C52: Totale kost | D52: Kost / kg witloof
B53: Zaaigoed | C53: ='Invoer gegevens'!D17 -> 24534.6748 | D53: =C53/'Invoer gegevens'!L$13 -> 0.07626784516
B54: Meststoffen | C54: ='Invoer gegevens'!D18 -> 11493.9768 | D54: =C54/'Invoer gegevens'!L$13 -> 0.03572987415
B55: Gewasbescherming | C55: ='Invoer gegevens'!D19 -> 15982.2398 | D55: =C55/'Invoer gegevens'!L$13 -> 0.04968197053
B56: Bewaring | C56: ='Invoer gegevens'!D20 -> 2086.81 | D56: =C56/'Invoer gegevens'!L$13 -> 0.006487002711
B57: Verwarming | C57: ='Invoer gegevens'!D21 -> 2478.6576 | D57: =C57/'Invoer gegevens'!L$13 -> 0.00770508986
B58: Energie en water | C58: ='Invoer gegevens'!D22 -> 37821.1112 | D58: =C58/'Invoer gegevens'!L$13 -> 0.1175697121
B59: Afzet en vermarkting | C59: ='Invoer gegevens'!D23 -> 4418.911 | D59: =C59/'Invoer gegevens'!L$13 -> 0.01373651058
B60: Loonwerk en seizoenslonen | C60: ='Invoer gegevens'!D24 -> 104804.6844 | D60: =C60/'Invoer gegevens'!L$13 -> 0.325793087
B61: Diverse | C61: ='Invoer gegevens'!D25 -> 11801.72 | D61: =C61/'Invoer gegevens'!L$13 -> 0.03668651657
B62: Betaalde arbeid | C62: ='Invoer gegevens'!D28 -> 6465.258 | D62: =C62/'Invoer gegevens'!L$13 -> 0.02009773107
B63: Betaalde pacht | C63: ='Invoer gegevens'!D33 -> 70837.1056 | D63: =C63/'Invoer gegevens'!L$13 -> 0.2202023644

Sheet Rekenblad 2 (hidden)
A3: Rendement van eigen arbeid | B3: Speedometer | D3: Pointer | F3: Real values
B4: Start | C4: 0 | D4: Value | E4: =(G9/G8)*C8 -> -1.860259935 | F4: Min | G4: 0
B5: Initial | C5: =((G5-G4)/G8)*C8 -> 8.333333333 | D5: Pointer | E5: 1 | F5: Bad | G5: 25000
B6: Middle | C6: =((G6-G5)/G8)*C8 -> 8.333333333 | D6: End | E6: =(C8+C7+C6+C5+C4) - (E4+E5) -> 200.8602599 | F6: Good | G6: 50000
B7: End | C7: =((G7-G6)/G8)*C8 -> 83.33333333 | F7: Max | G7: 300000
B8: Total | C8: 100 | F8: Total | G8: =G7-G4 -> 300000
F9: Value | G9: =' Rekenblad 1'!D13 -> -5580.779805
A10: Rendement van eigen vermogen | B10: Start | C10: 0 | D10: Value | E10: =((G15-G10)/G14)*C14 -> 17.82397588 | F10: Min | G10: -5
B11: Initial | C11: =((G11-G10)/G14)*C14 -> 22.85714286 | D11: Pointer | E11: 1 | F11: Bad | G11: 3
B12: Middle | C12: =((G12-G11)/G14)*C14 -> 5.714285714 | D12: End | E12: =(C14+C13+C12+C11+C10) - (E10+E11) -> 181.1760241 | F12: Good | G12: 5
B13: End | C13: =((G13-G12)/G14)*C14 -> 71.42857143 | F13: Max | G13: 30
B14: Total | C14: 100 | F14: Total | G14: =G13-G10 -> 35
F15: Value | G15: =' Rekenblad 1'!D17*100 -> 1.238391557
A16: Rendement van totaal vermogen | B16: Start | C16: 0 | D16: Value | E16: =((G21-G16)/G19)*C20 -> 23.62163162 | F16: Min | G16: -5
B17: Initial | C17: =((G17-G16)/G20)*C20 -> 26.66666667 | D17: Pointer | E17: 1 | F17: Bad | G17: 3
B18: Middle | C18: =((G18-G17)/G20)*100 -> 6.666666667 | D18: End | E18: =(C20+C19+C18+C17+C16) -(E16+E17) -> 175.3783684 | F18: Good | G18: 5 | J18: =C17+C18+C19 -> 100
B19: End | C19: =((G19-G18)/G20)*C20 -> 66.66666667 | F19: Max | G19: 25
B20: Total | C20: 100 | F20: Total | G20: =G19-G16 -> 30
F21: Value | G21: =' Rekenblad 1'!D15*100 -> 0.9054079038
A22: Netto bedrijfsinkomen | B22: Start | C22: 0 | D22: Value | E22: =(G27/G26)*C26 -> 6.448246686 | F22: Min | G22: 0
B23: Initial | C23: =((G23-G22)/G26)*100 -> 7.142857143 | D23: Pointer | E23: 1 | F23: Bad | G23: 25000
B24: Middle | C24: =((G24-G23)/G26)*C26 -> 21.42857143 | D24: End | E24: =(C22+C23+C24+C25+C26)-(E22+E23) -> 192.5517533 | F24: Good | G24: 100000
B25: End | C25: =((G25-G24)/G26)*C26 -> 71.42857143 | F25: Max | G25: 350000
B26: Total | C26: 100 | F26: Total | G26: =G25-G22 -> 350000
F27: Value | G27: =' Rekenblad 1'!D21 -> 22568.8634
A28: Vlottende marge | B28: Start | C28: 0 | D28: Value | E28: =((G33-G28)/G32)*C32 -> 33.33560976 | F28: Min | G28: -25000
B29: Initial | C29: =((G29-G28)/G32)*C32 -> 33.33333333 | D29: Pointer | E29: 1 | F29: Bad | G29: 0
B30: Middle | C30: =((G30-G29)/G32)*C32 -> 33.33333333 | D30: End | E30: =(C32*2)-(E28+E29) -> 165.6643902 | F30: Good | G30: 25000
B31: End | C31: =((G31-G30)/G32)*C32 -> 33.33333333 | F31: Max | G31: 50000
B32: Total | C32: 100 | F32: Total | G32: =G31-G28 -> 75000
F33: Value | G33: =' Rekenblad 1'!D37 -> 1.707317073
A34: Vlottende marge-omzet ratio | B34: Start | C34: 0 | D34: Value | E34: =((G39-G34)/G38)*C38 -> 28.92497478 | F34: Min | G34: -10
B35: Initial | C35: =((G35-G34)/G38)*C38 -> 33.33333333 | D35: Pointer | E35: 1 | F35: Bad | G35: 10
B36: Middle | C36: =((G36-G35)/G38)*C38 -> 33.33333333 | D36: End | E36: =(2*C38)-(E34+E35) -> 170.0750252 | F36: Good | G36: 30
B37: End | C37: =((G37-G36)/G38)*C38 -> 33.33333333 | F37: Max | G37: 50
B38: Total | C38: 100 | F38: Total | G38: =G37-G34 -> 60
F39: Value | G39: =' Rekenblad 1'!D39*100 -> 7.35498487
A40: Aflossingscapaciteit | B40: Start | C40: 0 | D40: Value | E40: =((G45-G40)/G44)*C44 -> 21.39394964 | F40: Min | G40: 0
B41: Initial | C41: =((G41-G40)/G44)*C44 -> 11.11111111 | D41: Pointer | E41: 1 | F41: Bad | G41: 50000
B42: Middle | C42: =((G42-G41)/G44)*C44 -> 11.11111111 | D42: End | E42: =(2*C44)-(E40+E41) -> 177.6060504 | F42: Good | G42: 100000
B43: End | C43: =((G43-G42)/G44)*C44 -> 77.77777778 | F43: Max | G43: 450000
B44: Total | C44: 100 | F44: Total | G44: =G43-G40 -> 450000
F45: Value | G45: =' Rekenblad 1'!D43 -> 96272.7734
A46: Aflossingsmarge | B46: Start | C46: 0 | D46: Value | E46: =((G51-G46)/G50)*C50 -> 10.90679535 | F46: Min | G46: 0
B47: Initial | C47: =((G47-G46)/G50)*C50 -> 6.25 | D47: Pointer | E47: 1 | F47: Bad | G47: 25000
B48: Middle | C48: =((G48-G47)/G50)*C50 -> 12.5 | D48: End | E48: =200-(E46+E47) -> 188.0932046 | F48: Good | G48: 75000
B49: End | C49: =((G49-G48)/G50)*C50 -> 81.25 | F49: Max | G49: 400000
B50: Total | C50: 100 | F50: Total | G50: =G49-G46 -> 400000
F51: Value | G51: =' Rekenblad 1'!D45 -> 43627.1814
A52: Schuldgraad | B52: Start | C52: 0 | D52: Value | E52: =((G57-G52)/G56)*C56 -> 26.88839819 | F52: Min | G52: 0
B53: Initial | C53: =((G53-G52)/G56)*C56 -> 30 | D53: Pointer | E53: 1 | F53: Bad | G53: 30
B54: Middle | C54: =((G54-G53)/G56)*C56 -> 30 | D54: End | E54: =200-(E52+E53) -> 172.1116018 | F54: Good | G54: 60
B55: End | C55: =((G55-G54)/G56)*C56 -> 40 | F55: Max | G55: 100
B56: Total | C56: 100 | F56: Total | G56: =G55-G52 -> 100
F57: Value | G57: =' Rekenblad 1'!D9*100 -> 26.88839819
A58: Operationele winst marge ratio | B58: Start | C58: 0 | D58: Value | E58: =((G63-G58)/G62)*C62 -> -16.44388453 | F58: Min | G58: 0
B59: Initial | C59: =((G59-G58)/G62)*C62 -> 14.28571429 | D59: Pointer | E59: 1 | F59: Bad | G59: 10
B60: Middle | C60: =((G60-G59)/G62)*C62 -> 21.42857143 | D60: End | E60: =200-(E58+E59) -> 215.4438845 | F60: Good | G60: 25
B61: End | C61: =((G61-G60)/G62)*C62 -> 64.28571429 | F61: Max | G61: 70
B62: Total | C62: 100 | F62: Total | G62: =G61-G58 -> 70
F63: Value | G63: =' Rekenblad 1'!D19*100 -> -11.51071917
A64: Activa turnover | B64: Start | C64: 0 | D64: Value | E64: =((G69-G64)/G68)*C68 -> 34.47752048 | F64: Min | G64: 0
B65: Initial | C65: =((G65-G64)/G68)*C68 -> 40 | D65: Pointer | E65: 1 | F65: Bad | G65: 30
B66: Middle | C66: =((G66-G65)/G68)*C68 -> 20 | D66: End | E66: =200-(E65+E64) -> 164.5224795 | F66: Good | G66: 45
B67: End | C67: =((G67-G66)/G68)*C68 -> 40 | F67: Max | G67: 75
B68: Total | C68: 100 | F68: Total | G68: =G67-G64 -> 75
F69: Value | G69: =' Rekenblad 1'!D25*100 -> 25.85814036
A70: Kosten omzet ratio | B70: Start | C70: 0 | D70: Value | E70: =((G75-G70)/G74)*C74 -> 78.14842263 | F70: Min | G70: 0
B71: Initial | C71: =((G71-G70)/G74)*C74 -> 63.15789474 | D71: Pointer | E71: 1 | F71: Bad | G71: 60
B72: Middle | C72: =((G72-G71)/G74)*C74 -> 21.05263158 | D72: End | E72: =200-(E70+E71) -> 120.8515774 | F72: Good | G72: 80
B73: End | C73: =((G73-G72)/G74)*C74 -> 15.78947368 | F73: Max | G73: 95
B74: Total | C74: 100 | F74: Total | G74: =G73-G70 -> 95
F75: Value | G75: =' Rekenblad 1'!D27*100 -> 74.2410015

Sheet Resultaat
A1: Basisindicatoren
A2: Economische gezondheid
A3: Rendement van eigen arbeid | H3: Rendement van eigen vermogen | O3: Rendement van totaal vermogen | V3: Netto bedrijfsinkomen
A22: Financiële gezondheid
A23: Vlottende ratio | H23: Vlottende marge-omzet ratio | O23: Aflossingscapaciteit | V23: Aflossingsmarge
A43: Hulpindicatoren en verdere analyse
A44: Schuldgraad | H44: Operationele winstmarge ratio | O44: Activa-omzet ratio | V44: Kosten-omzet ratio
A65: Waar gaat mijn omzet heen? | P65: Waar spendeer ik mijn kosten aan?
